[Event "January 9 Late 2024"]
[Site "https://www.chess.com"]
[Date "2024.01.09"]
[Round "5"]
[White "Leitao, Rafael"]
[Black "Sarana, Alexey"]
[Result "0-1"]
[Board "21"]
[TimeControl "180+1"]
[WhiteFideId "2101246"]
[BlackFideId "24133795"]
[WhiteElo "2750"]
[BlackElo "3043"]
[WhiteTeam "BRA"]
[BlackTeam "SRB"]
[WhiteClock "0:00:00"]
[BlackClock "0:00:19"]

1. c4 {[%clk 0:03:00]}  e6 {[%clk 0:02:59]} 2. g3 {[%clk 0:02:59]}  d5 {[%clk 0:03:00]} 3. Bg2 {[%clk 0:02:59]}  Nf6 {[%clk 0:03:01]} 4. Nf3 {[%clk 0:02:59]}  Be7 {[%clk 0:03:02]} 5. O-O {[%clk 0:02:59]}  O-O {[%clk 0:03:02]} 6. b3 {[%clk 0:02:59]}  d4 {[%clk 0:03:02]} 7. e3 {[%clk 0:02:58]}  c5 {[%clk 0:03:02]} 8. exd4 {[%clk 0:02:58]}  cxd4 {[%clk 0:03:03]} 9. d3 {[%clk 0:02:59]}  Nc6 {[%clk 0:03:03]} 10. Na3 {[%clk 0:02:48]}  e5 {[%clk 0:03:02]} 11. Re1 {[%clk 0:02:45]}  Nd7 {[%clk 0:03:02]} 12. Nc2 {[%clk 0:02:42]}  Re8 {[%clk 0:02:57]} 13. a3 {[%clk 0:02:36]}  a5 {[%clk 0:02:58]} 14. Rb1 {[%clk 0:02:36]}  Bf8 {[%clk 0:02:26]} 15. b4 {[%clk 0:02:32]}  axb4 {[%clk 0:02:26]} 16. axb4 {[%clk 0:02:32]}  Ra2 {[%clk 0:02:27]} 17. b5 {[%clk 0:02:22]}  Ncb8 {[%clk 0:02:22]} 18. Bd2 {[%clk 0:02:13]}  f6 {[%clk 0:02:17]} 19. Nb4 {[%clk 0:02:10]}  Ra3 {[%clk 0:02:12]} 20. Ra1 {[%clk 0:01:23]}  Rxa1 {[%clk 0:02:11]} 21. Qxa1 {[%clk 0:01:23]}  Nc5 {[%clk 0:02:12]} 22. Qa7 {[%clk 0:01:02]}  Be6 {[%clk 0:01:48]} 23. Rd1 {[%clk 0:00:49]}  Nbd7 {[%clk 0:01:47]} 24. Ne1 {[%clk 0:00:50]}  Qc8 {[%clk 0:01:38]} 25. Nd5 {[%clk 0:00:49]}  Kh8 {[%clk 0:01:21]} 26. Ba5 {[%clk 0:00:47]}  Qa8 {[%clk 0:01:19]} 27. Qxa8 {[%clk 0:00:37]}  Rxa8 {[%clk 0:01:19]} 28. Bb4 {[%clk 0:00:34]}  Ra2 {[%clk 0:01:14]} 29. f4 {[%clk 0:00:34]}  Bg4 {[%clk 0:01:11]} 30. Bf3 {[%clk 0:00:30]}  Bf5 {[%clk 0:01:06]} 31. g4 {[%clk 0:00:28]}  Bg6 {[%clk 0:01:01]} 32. f5 {[%clk 0:00:22]}  Bf7 {[%clk 0:01:01]} 33. h3 {[%clk 0:00:19]}  Kg8 {[%clk 0:01:01]} 34. Kf1 {[%clk 0:00:19]}  Na4 {[%clk 0:00:52]} 35. Bxf8 {[%clk 0:00:16]}  Kxf8 {[%clk 0:00:52]} 36. Nc7 {[%clk 0:00:15]}  Ndc5 {[%clk 0:00:51]} 37. Bd5 {[%clk 0:00:14]}  Nc3 {[%clk 0:00:49]} 38. Rc1 {[%clk 0:00:11]}  b6 {[%clk 0:00:33]} 39. Bxf7 {[%clk 0:00:07]}  Kxf7 {[%clk 0:00:33]} 40. Rc2 {[%clk 0:00:03]}  Ra1 {[%clk 0:00:33]} 41. Kf2 {[%clk 0:00:04]}  Nd1+ {[%clk 0:00:32]} 42. Ke2 {[%clk 0:00:04]}  Ne3 {[%clk 0:00:32]} 43. Rb2 {[%clk 0:00:04]}  Ke7 {[%clk 0:00:31]} 44. Na6 {[%clk 0:00:04]}  Na4 {[%clk 0:00:28]} 45. Rb4 {[%clk 0:00:01]}  Nc3+ {[%clk 0:00:28]} 46. Kf2 {[%clk 0:00:01]}  Kd6 {[%clk 0:00:20]} 47. c5+ {[%clk 0:00:01]}  bxc5 {[%clk 0:00:19]} 48. Rb2 {[%clk 0:00:00]}  Ned1+ {[%clk 0:00:19]} 0-1

[Event "January 9 Late 2024"]
[Site "https://www.chess.com"]
[Date "2024.01.09"]
[Round "5"]
[White "Paravyan, David"]
[Black "Mekhitarian, Krikor Sevag"]
[Result "1/2-1/2"]
[Board "24"]
[TimeControl "180+1"]
[WhiteFideId "4194985"]
[BlackFideId "2107660"]
[WhiteElo "3016"]
[BlackElo "2740"]
[WhiteTeam "FID"]
[BlackTeam "BRA"]
[WhiteClock "0:01:53"]
[BlackClock "0:00:24"]

1. e4 {[%clk 0:03:00]}  e6 {[%clk 0:02:59]} 2. d4 {[%clk 0:03:00]}  d5 {[%clk 0:02:58]} 3. Nc3 {[%clk 0:03:01]}  Nf6 {[%clk 0:02:54]} 4. Bg5 {[%clk 0:03:01]}  dxe4 {[%clk 0:02:51]} 5. Nxe4 {[%clk 0:03:02]}  Be7 {[%clk 0:02:51]} 6. Nxf6+ {[%clk 0:03:02]}  Bxf6 {[%clk 0:02:51]} 7. Bxf6 {[%clk 0:03:02]}  Qxf6 {[%clk 0:02:52]} 8. c3 {[%clk 0:03:03]}  O-O {[%clk 0:02:46]} 9. Qf3 {[%clk 0:03:03]}  Qxf3 {[%clk 0:02:38]} 10. Nxf3 {[%clk 0:03:04]}  b6 {[%clk 0:02:38]} 11. g3 {[%clk 0:03:03]}  Bb7 {[%clk 0:02:38]} 12. Bg2 {[%clk 0:03:04]}  Nd7 {[%clk 0:02:37]} 13. Nh4 {[%clk 0:03:02]}  Bxg2 {[%clk 0:02:33]} 14. Nxg2 {[%clk 0:03:03]}  Rfd8 {[%clk 0:02:26]} 15. O-O-O {[%clk 0:03:03]}  c5 {[%clk 0:02:22]} 16. Rhe1 {[%clk 0:02:56]}  Kf8 {[%clk 0:02:13]} 17. d5 {[%clk 0:02:53]}  exd5 {[%clk 0:02:12]} 18. Rxd5 {[%clk 0:02:54]}  Nf6 {[%clk 0:02:12]} 19. Rxd8+ {[%clk 0:02:54]}  Rxd8 {[%clk 0:02:12]} 20. f3 {[%clk 0:02:46]}  Re8 {[%clk 0:02:01]} 21. Kd2 {[%clk 0:02:46]}  Rxe1 {[%clk 0:02:01]} 22. Nxe1 {[%clk 0:02:47]}  Ke7 {[%clk 0:02:02]} 23. Kd3 {[%clk 0:02:42]}  Kd6 {[%clk 0:01:56]} 24. Nc2 {[%clk 0:02:42]}  b5 {[%clk 0:01:52]} 25. c4 {[%clk 0:02:40]}  b4 {[%clk 0:01:50]} 26. Ne3 {[%clk 0:02:37]}  g6 {[%clk 0:01:49]} 27. f4 {[%clk 0:02:26]}  h5 {[%clk 0:01:46]} 28. h3 {[%clk 0:02:18]}  Ke6 {[%clk 0:01:09]} 29. g4 {[%clk 0:02:18]}  hxg4 {[%clk 0:01:09]} 30. hxg4 {[%clk 0:02:18]}  Kd6 {[%clk 0:00:55]} 31. g5 {[%clk 0:02:17]}  Nh5 {[%clk 0:00:55]} 32. Ke4 {[%clk 0:02:16]}  Ng3+ {[%clk 0:00:32]} 33. Kf3 {[%clk 0:02:16]}  Nf5 {[%clk 0:00:33]} 34. Nxf5+ {[%clk 0:02:14]}  gxf5 {[%clk 0:00:34]} 35. Kg3 {[%clk 0:02:13]}  Ke7 {[%clk 0:00:34]} 36. a4 {[%clk 0:02:00]}  a5 {[%clk 0:00:27]} 37. Kh4 {[%clk 0:01:57]}  Kf8 {[%clk 0:00:27]} 38. b3 {[%clk 0:01:54]}  Kg7 {[%clk 0:00:26]} 39. Kh5 {[%clk 0:01:52]}  Kh7 {[%clk 0:00:27]} 40. Kh4 {[%clk 0:01:53]}  Kg7 {[%clk 0:00:27]} 41. Kh5 {[%clk 0:01:53]}  Kh7 {[%clk 0:00:25]} 42. Kh4 {[%clk 0:01:53]}  Kg6 {[%clk 0:00:23]} 43. Kg3 {[%clk 0:01:53]}  Kg7 {[%clk 0:00:23]} 44. Kh3 {[%clk 0:01:53]}  Kh7 {[%clk 0:00:22]} 45. Kg3 {[%clk 0:01:53]}  Kg7 {[%clk 0:00:23]} 46. Kh3 {[%clk 0:01:53]}  Kh7 {[%clk 0:00:23]} 47. Kg3 {[%clk 0:01:53]}  Kg7 {[%clk 0:00:24]} 1/2-1/2

[Event "January 9 Late 2024"]
[Site "https://www.chess.com"]
[Date "2024.01.09"]
[Round "5"]
[White "Nagare Kaivalya Sandip"]
[Black "Svane, Rasmus"]
[Result "0-1"]
[Board "25"]
[TimeControl "180+1"]
[WhiteFideId "25957929"]
[BlackFideId "4657101"]
[WhiteElo "2735"]
[BlackElo "3005"]
[WhiteTeam "IND"]
[BlackTeam "GER"]
[WhiteClock "0:00:32"]
[BlackClock "0:00:06"]

1. e4 {[%clk 0:03:00]}  c6 {[%clk 0:02:59]} 2. d4 {[%clk 0:03:00]}  d5 {[%clk 0:03:00]} 3. e5 {[%clk 0:03:01]}  Bf5 {[%clk 0:03:00]} 4. h4 {[%clk 0:03:01]}  h5 {[%clk 0:02:59]} 5. c4 {[%clk 0:03:01]}  e6 {[%clk 0:02:58]} 6. Nc3 {[%clk 0:03:02]}  Ne7 {[%clk 0:02:57]} 7. Nge2 {[%clk 0:03:00]}  Nd7 {[%clk 0:02:52]} 8. Ng3 {[%clk 0:03:00]}  Bg6 {[%clk 0:02:52]} 9. Bg5 {[%clk 0:02:59]}  Qb6 {[%clk 0:02:47]} 10. Rc1 {[%clk 0:02:59]}  Qxb2 {[%clk 0:02:22]} 11. Bd3 {[%clk 0:02:56]}  dxc4 {[%clk 0:02:19]} 12. Bxc4 {[%clk 0:02:51]}  Nb6 {[%clk 0:02:11]} 13. Bd3 {[%clk 0:02:48]}  Bxd3 {[%clk 0:02:09]} 14. Qxd3 {[%clk 0:02:48]}  Qa3 {[%clk 0:01:48]} 15. O-O {[%clk 0:02:46]}  Ned5 {[%clk 0:01:43]} 16. Nge4 {[%clk 0:02:41]}  Bb4 {[%clk 0:01:35]} 17. Qg3 {[%clk 0:02:31]}  Nxc3 {[%clk 0:01:33]} 18. Nxc3 {[%clk 0:02:31]}  Nd5 {[%clk 0:01:05]} 19. Nxd5 {[%clk 0:02:13]}  exd5 {[%clk 0:00:56]} 20. Be3 {[%clk 0:02:11]}  O-O {[%clk 0:00:53]} 21. Qg5 {[%clk 0:02:09]}  g6 {[%clk 0:00:50]} 22. g4 {[%clk 0:02:05]}  Be7 {[%clk 0:00:44]} 23. Qf4 {[%clk 0:02:03]}  hxg4 {[%clk 0:00:41]} 24. Qxg4 {[%clk 0:02:04]}  Qd3 {[%clk 0:00:40]} 25. h5 {[%clk 0:01:57]}  Qf5 {[%clk 0:00:38]} 26. Qxf5 {[%clk 0:01:57]}  gxf5 {[%clk 0:00:38]} 27. Kg2 {[%clk 0:01:57]}  Kh7 {[%clk 0:00:38]} 28. Kf3 {[%clk 0:01:57]}  Rg8 {[%clk 0:00:38]} 29. Rg1 {[%clk 0:01:49]}  f6 {[%clk 0:00:19]} 30. e6 {[%clk 0:01:39]}  Bd6 {[%clk 0:00:17]} 31. Bf4 {[%clk 0:01:39]}  Be7 {[%clk 0:00:15]} 32. Be3 {[%clk 0:01:25]}  Rae8 {[%clk 0:00:15]} 33. Kf4 {[%clk 0:01:23]}  Rg5 {[%clk 0:00:08]} 34. Rxg5 {[%clk 0:01:22]}  fxg5+ {[%clk 0:00:09]} 35. Kxf5 {[%clk 0:01:23]}  Kh6 {[%clk 0:00:06]} 36. f4 {[%clk 0:01:16]}  Rf8+ {[%clk 0:00:05]} 37. Kg4 {[%clk 0:01:16]}  gxf4 {[%clk 0:00:02]} 38. Bxf4+ {[%clk 0:01:17]}  Kh7 {[%clk 0:00:03]} 39. Be5 {[%clk 0:01:13]}  Rc8 {[%clk 0:00:01]} 40. Rf1 {[%clk 0:01:11]}  Rg8+ {[%clk 0:00:02]} 41. Kh3 {[%clk 0:01:09]}  Kh6 {[%clk 0:00:02]} 42. Rf7 {[%clk 0:01:08]}  Bg5 {[%clk 0:00:02]} 43. e7 {[%clk 0:01:07]}  Re8 {[%clk 0:00:02]} 44. Bd6 {[%clk 0:01:04]}  Kxh5 {[%clk 0:00:02]} 45. Rf8 {[%clk 0:01:04]}  Bxe7 {[%clk 0:00:02]} 46. Rxe8 {[%clk 0:01:02]}  Bxd6 {[%clk 0:00:03]} 47. Ra8 {[%clk 0:01:00]}  a6 {[%clk 0:00:03]} 48. Ra7 {[%clk 0:01:00]}  c5 {[%clk 0:00:02]} 49. dxc5 {[%clk 0:00:57]}  Bxc5 {[%clk 0:00:03]} 50. Rxb7 {[%clk 0:00:58]}  Kg5 {[%clk 0:00:03]} 51. Kg3 {[%clk 0:00:58]}  Kf5 {[%clk 0:00:03]} 52. Kf3 {[%clk 0:00:59]}  Ke5 {[%clk 0:00:04]} 53. Ke2 {[%clk 0:00:59]}  Kd6 {[%clk 0:00:05]} 54. Kd3 {[%clk 0:00:59]}  Kc6 {[%clk 0:00:05]} 55. Rh7 {[%clk 0:00:59]}  Bb6 {[%clk 0:00:06]} 56. Kc3 {[%clk 0:00:54]}  Kb5 {[%clk 0:00:05]} 57. Kb3 {[%clk 0:00:54]}  Bc5 {[%clk 0:00:05]} 58. Rh5 {[%clk 0:00:52]}  Kc6 {[%clk 0:00:06]} 59. Rg5 {[%clk 0:00:52]}  Bb6 {[%clk 0:00:06]} 60. Kc3 {[%clk 0:00:50]}  Kc5 {[%clk 0:00:06]} 61. Rg8 {[%clk 0:00:49]}  Ba5+ {[%clk 0:00:06]} 62. Kb3 {[%clk 0:00:46]}  Bb6 {[%clk 0:00:07]} 63. Rc8+ {[%clk 0:00:46]}  Kb5 {[%clk 0:00:06]} 64. a4+ {[%clk 0:00:42]}  Ka5 {[%clk 0:00:06]} 65. Rc6 {[%clk 0:00:42]}  Ba7 {[%clk 0:00:04]} 66. Rd6 {[%clk 0:00:42]}  d4 {[%clk 0:00:04]} 67. Rd5+ {[%clk 0:00:43]}  Kb6 {[%clk 0:00:05]} 68. Rxd4 {[%clk 0:00:43]}  Kc6 {[%clk 0:00:05]} 69. Rh4 {[%clk 0:00:42]}  Bc5 {[%clk 0:00:05]} 70. Rh6+ {[%clk 0:00:43]}  Kb7 {[%clk 0:00:05]} 71. Kc4 {[%clk 0:00:42]}  Bb6 {[%clk 0:00:05]} 72. Kd5 {[%clk 0:00:38]}  Be3 {[%clk 0:00:05]} 73. Kc4 {[%clk 0:00:35]}  Bxh6 {[%clk 0:00:05]} 74. Kc5 {[%clk 0:00:33]}  Bf8+ {[%clk 0:00:05]} 75. Kc4 {[%clk 0:00:33]}  Kb6 {[%clk 0:00:05]} 76. Kc3 {[%clk 0:00:32]}  Ka5 {[%clk 0:00:05]} 77. Kb3 {[%clk 0:00:32]}  Be7 {[%clk 0:00:06]} 0-1

[Event "January 9 Late 2024"]
[Site "https://www.chess.com"]
[Date "2024.01.09"]
[Round "5"]
[White "Weetik, Vjacheslav"]
[Black "Deac, Bogdan-Daniel"]
[Result "0-1"]
[Board "26"]
[TimeControl "180+1"]
[WhiteFideId "4153472"]
[BlackFideId "1226380"]
[WhiteElo "2733"]
[BlackElo "2998"]
[WhiteTeam "RUS"]
[BlackTeam "ROU"]
[WhiteClock "0:00:10"]
[BlackClock "0:00:08"]

1. d4 {[%clk 0:02:59]}  Nf6 {[%clk 0:02:59]} 2. c4 {[%clk 0:02:59]}  e6 {[%clk 0:02:59]} 3. g3 {[%clk 0:02:59]}  d5 {[%clk 0:02:59]} 4. Nf3 {[%clk 0:02:59]}  dxc4 {[%clk 0:02:59]} 5. Bg2 {[%clk 0:03:00]}  a6 {[%clk 0:02:59]} 6. O-O {[%clk 0:03:00]}  Nc6 {[%clk 0:02:59]} 7. Nc3 {[%clk 0:03:00]}  Rb8 {[%clk 0:02:57]} 8. e4 {[%clk 0:02:59]}  Be7 {[%clk 0:02:55]} 9. Qe2 {[%clk 0:02:51]}  b5 {[%clk 0:02:48]} 10. Rd1 {[%clk 0:02:50]}  Nb4 {[%clk 0:02:47]} 11. Ne5 {[%clk 0:02:12]}  Nd7 {[%clk 0:02:45]} 12. Nf3 {[%clk 0:01:49]}  O-O {[%clk 0:02:39]} 13. b3 {[%clk 0:01:49]}  cxb3 {[%clk 0:02:33]} 14. axb3 {[%clk 0:01:49]}  Bb7 {[%clk 0:02:34]} 15. h4 {[%clk 0:01:43]}  Rc8 {[%clk 0:02:22]} 16. Bb2 {[%clk 0:01:39]}  Qe8 {[%clk 0:02:18]} 17. Ng5 {[%clk 0:01:26]}  h6 {[%clk 0:02:10]} 18. Nh3 {[%clk 0:01:26]}  c5 {[%clk 0:02:10]} 19. d5 {[%clk 0:01:25]}  exd5 {[%clk 0:02:04]} 20. exd5 {[%clk 0:01:09]}  Bf6 {[%clk 0:02:04]} 21. Ne4 {[%clk 0:01:06]}  Bxb2 {[%clk 0:00:44]} 22. Qxb2 {[%clk 0:01:05]}  Qe5 {[%clk 0:00:45]} 23. Qxe5 {[%clk 0:00:57]}  Nxe5 {[%clk 0:00:46]} 24. Nd6 {[%clk 0:00:58]}  Rb8 {[%clk 0:00:42]} 25. Nf4 {[%clk 0:00:55]}  Rfd8 {[%clk 0:00:40]} 26. Nf5 {[%clk 0:00:49]}  Kf8 {[%clk 0:00:35]} 27. Rac1 {[%clk 0:00:47]}  Rbc8 {[%clk 0:00:28]} 28. h5 {[%clk 0:00:47]}  c4 {[%clk 0:00:24]} 29. bxc4 {[%clk 0:00:47]}  Rxc4 {[%clk 0:00:23]} 30. Bf1 {[%clk 0:00:33]}  Rxc1 {[%clk 0:00:16]} 31. Rxc1 {[%clk 0:00:34]}  Nxd5 {[%clk 0:00:16]} 32. Rd1 {[%clk 0:00:26]}  Rd7 {[%clk 0:00:09]} 33. Re1 {[%clk 0:00:10]}  Nf3+ {[%clk 0:00:08]} 0-1

[Event "January 9 Late 2024"]
[Site "https://www.chess.com"]
[Date "2024.01.09"]
[Round "5"]
[White "Arabidze, Meri"]
[Black "Anton Guijarro, David"]
[Result "0-1"]
[Board "28"]
[TimeControl "180+1"]
[WhiteFideId "13604040"]
[BlackFideId "2285525"]
[WhiteElo "2728"]
[BlackElo "2974"]
[WhiteTeam "GEO"]
[BlackTeam "ESP"]
[WhiteClock "0:00:09"]
[BlackClock "0:00:30"]

1. Nf3 {[%clk 0:02:56]}  e6 {[%clk 0:02:57]} 2. c4 {[%clk 0:02:55]}  g5 {[%clk 0:02:57]} 3. h3 {[%clk 0:02:49]}  Bg7 {[%clk 0:02:57]} 4. d4 {[%clk 0:02:47]}  h6 {[%clk 0:02:57]} 5. Nc3 {[%clk 0:02:47]}  Ne7 {[%clk 0:02:57]} 6. e4 {[%clk 0:02:43]}  d6 {[%clk 0:02:57]} 7. Be2 {[%clk 0:02:42]}  O-O {[%clk 0:02:53]} 8. Be3 {[%clk 0:02:31]}  f5 {[%clk 0:02:52]} 9. exf5 {[%clk 0:02:31]}  Nxf5 {[%clk 0:02:36]} 10. Bc1 {[%clk 0:02:31]}  Nc6 {[%clk 0:02:35]} 11. d5 {[%clk 0:02:18]}  Ncd4 {[%clk 0:02:34]} 12. Nxd4 {[%clk 0:02:10]}  Nxd4 {[%clk 0:02:33]} 13. Bg4 {[%clk 0:01:58]}  exd5 {[%clk 0:02:15]} 14. Bxc8 {[%clk 0:01:59]}  Qxc8 {[%clk 0:01:35]} 15. Nxd5 {[%clk 0:01:58]}  Re8+ {[%clk 0:01:34]} 16. Be3 {[%clk 0:01:55]}  c6 {[%clk 0:01:30]} 17. Nc3 {[%clk 0:01:47]}  Nf5 {[%clk 0:01:24]} 18. O-O {[%clk 0:01:47]}  Nxe3 {[%clk 0:01:22]} 19. fxe3 {[%clk 0:01:47]}  Qe6 {[%clk 0:01:23]} 20. e4 {[%clk 0:01:34]}  Qxc4 {[%clk 0:01:10]} 21. Qxd6 {[%clk 0:01:24]}  Qd4+ {[%clk 0:01:09]} 22. Qxd4 {[%clk 0:01:24]}  Bxd4+ {[%clk 0:01:10]} 23. Kh2 {[%clk 0:01:24]}  Be5+ {[%clk 0:01:05]} 24. Kg1 {[%clk 0:01:24]}  Rad8 {[%clk 0:00:59]} 25. Rad1 {[%clk 0:01:09]}  Rxd1 {[%clk 0:00:51]} 26. Rxd1 {[%clk 0:01:08]}  Kf7 {[%clk 0:00:52]} 27. Rd7+ {[%clk 0:00:57]}  Re7 {[%clk 0:00:52]} 28. Rxe7+ {[%clk 0:00:57]}  Kxe7 {[%clk 0:00:53]} 29. Kf2 {[%clk 0:00:50]}  Bxc3 {[%clk 0:00:46]} 30. bxc3 {[%clk 0:00:50]}  Ke6 {[%clk 0:00:44]} 31. Ke3 {[%clk 0:00:43]}  Ke5 {[%clk 0:00:43]} 32. g3 {[%clk 0:00:41]}  b5 {[%clk 0:00:41]} 33. Kd3 {[%clk 0:00:29]}  c5 {[%clk 0:00:39]} 34. a3 {[%clk 0:00:15]}  h5 {[%clk 0:00:38]} 35. Ke3 {[%clk 0:00:14]}  g4 {[%clk 0:00:28]} 36. hxg4 {[%clk 0:00:14]}  hxg4 {[%clk 0:00:29]} 37. Kd3 {[%clk 0:00:15]}  c4+ {[%clk 0:00:29]} 38. Ke3 {[%clk 0:00:14]}  a6 {[%clk 0:00:29]} 39. Kd2 {[%clk 0:00:09]}  Kxe4 {[%clk 0:00:30]} 40. Ke2 {[%clk 0:00:09]}  a5 {[%clk 0:00:30]} 0-1

[Event "January 9 Late 2024"]
[Site "https://www.chess.com"]
[Date "2024.01.09"]
[Round "5"]
[White "Sjugirov, Sanan"]
[Black "Tarhan, Adar"]
[Result "0-1"]
[Board "32"]
[TimeControl "180+1"]
[WhiteFideId "4189302"]
[BlackFideId "34544712"]
[WhiteElo "2956"]
[BlackElo "2704"]
[WhiteTeam "HUN"]
[BlackTeam "TUR"]
[WhiteClock "0:00:48"]
[BlackClock "0:00:06"]

1. e4 {[%clk 0:02:57]}  c6 {[%clk 0:03:00]} 2. d4 {[%clk 0:02:56]}  d5 {[%clk 0:03:00]} 3. e5 {[%clk 0:02:56]}  Bf5 {[%clk 0:03:01]} 4. Nf3 {[%clk 0:02:57]}  e6 {[%clk 0:03:00]} 5. Be2 {[%clk 0:02:57]}  h6 {[%clk 0:02:59]} 6. O-O {[%clk 0:02:58]}  Nd7 {[%clk 0:02:56]} 7. Nbd2 {[%clk 0:02:58]}  g5 {[%clk 0:02:53]} 8. Nb3 {[%clk 0:02:58]}  Ne7 {[%clk 0:02:52]} 9. a4 {[%clk 0:02:57]}  Bg7 {[%clk 0:02:48]} 10. a5 {[%clk 0:02:57]}  a6 {[%clk 0:02:48]} 11. Bd2 {[%clk 0:02:57]}  Ng6 {[%clk 0:02:27]} 12. Ne1 {[%clk 0:02:54]}  h5 {[%clk 0:01:25]} 13. Bd3 {[%clk 0:02:50]}  Bxd3 {[%clk 0:01:24]} 14. Nxd3 {[%clk 0:02:50]}  g4 {[%clk 0:01:17]} 15. Bb4 {[%clk 0:02:32]}  Bf8 {[%clk 0:01:10]} 16. Bxf8 {[%clk 0:02:30]}  Rxf8 {[%clk 0:01:11]} 17. Qd2 {[%clk 0:02:27]}  Rg8 {[%clk 0:01:08]} 18. Qb4 {[%clk 0:02:17]}  Rb8 {[%clk 0:00:35]} 19. Qd6 {[%clk 0:02:14]}  Qe7 {[%clk 0:00:34]} 20. Nbc5 {[%clk 0:01:47]}  Qxd6 {[%clk 0:00:29]} 21. exd6 {[%clk 0:01:48]}  Nxc5 {[%clk 0:00:24]} 22. Nxc5 {[%clk 0:01:43]}  Nf8 {[%clk 0:00:25]} 23. f4 {[%clk 0:01:36]}  Nd7 {[%clk 0:00:25]} 24. f5 {[%clk 0:01:34]}  Nxc5 {[%clk 0:00:25]} 25. dxc5 {[%clk 0:01:34]}  e5 {[%clk 0:00:26]} 26. f6 {[%clk 0:01:35]}  Rg5 {[%clk 0:00:25]} 27. Ra3 {[%clk 0:01:25]}  Kd7 {[%clk 0:00:25]} 28. Rb3 {[%clk 0:01:25]}  e4 {[%clk 0:00:20]} 29. Rf4 {[%clk 0:01:14]}  Re5 {[%clk 0:00:19]} 30. Kf2 {[%clk 0:01:14]}  d4 {[%clk 0:00:19]} 31. Ke2 {[%clk 0:01:13]}  Rxc5 {[%clk 0:00:18]} 32. Rxe4 {[%clk 0:01:13]}  Rxc2+ {[%clk 0:00:18]} 33. Kd3 {[%clk 0:01:12]}  Rxg2 {[%clk 0:00:19]} 34. Rxd4 {[%clk 0:01:04]}  Rf2 {[%clk 0:00:18]} 35. Kc4 {[%clk 0:00:55]}  Rxf6 {[%clk 0:00:18]} 36. Rbd3 {[%clk 0:00:52]}  Re8 {[%clk 0:00:14]} 37. Rb3 {[%clk 0:00:52]}  Rb8 {[%clk 0:00:14]} 38. Rbd3 {[%clk 0:00:53]}  b5+ {[%clk 0:00:15]} 39. Kb4 {[%clk 0:00:46]}  Re8 {[%clk 0:00:12]} 40. Kc5 {[%clk 0:00:46]}  Rb8 {[%clk 0:00:07]} 41. Kb4 {[%clk 0:00:42]}  Rf5 {[%clk 0:00:06]} 42. Re4 {[%clk 0:00:43]}  c5+ {[%clk 0:00:07]} 43. Kc3 {[%clk 0:00:43]}  Re8 {[%clk 0:00:05]} 44. Rxe8 {[%clk 0:00:42]}  Kxe8 {[%clk 0:00:06]} 45. d7+ {[%clk 0:00:43]}  Kd8 {[%clk 0:00:06]} 46. Rd6 {[%clk 0:00:44]}  Rf3+ {[%clk 0:00:07]} 47. Kc2 {[%clk 0:00:43]}  h4 {[%clk 0:00:07]} 48. Rxa6 {[%clk 0:00:43]}  g3 {[%clk 0:00:07]} 49. Rh6 {[%clk 0:00:44]}  g2 {[%clk 0:00:06]} 50. Rh8+ {[%clk 0:00:44]}  Kxd7 {[%clk 0:00:07]} 51. Rg8 {[%clk 0:00:45]}  Rg3 {[%clk 0:00:06]} 52. hxg3 {[%clk 0:00:45]}  g1=Q {[%clk 0:00:06]} 53. a6 {[%clk 0:00:46]}  Qg2+ {[%clk 0:00:06]} 54. Kb3 {[%clk 0:00:46]}  Qd5+ {[%clk 0:00:06]} 55. Kc3 {[%clk 0:00:46]}  Qd4+ {[%clk 0:00:04]} 56. Kc2 {[%clk 0:00:47]}  Qa4+ {[%clk 0:00:05]} 57. Kd2 {[%clk 0:00:47]}  Qxa6 {[%clk 0:00:05]} 58. Ke3 {[%clk 0:00:48]}  Qh6+ {[%clk 0:00:05]} 59. Ke4 {[%clk 0:00:48]}  Qh7+ {[%clk 0:00:06]} 60. Kd5 {[%clk 0:00:49]}  Qxg8 {[%clk 0:00:06]} 61. gxh4 {[%clk 0:00:49]}  Qh7 {[%clk 0:00:06]} 62. h5 {[%clk 0:00:48]}  Qxh5+ {[%clk 0:00:06]} 0-1